Workbook

Sheet SpPl. Vorrd.
B1: =[1]Beschrieb!C1 -> 19. Deutsche Meisterschft im Boccia (Halle)
B2: =[1]Beschrieb!C2 -> am 28./29.Juli 2023 in Wiesbaden, LV Hessen
B4: =[1]Beschrieb!C4 -> 18 Teilnehmer aus 11 Landesverbänden
B6: Teilnehmer Gruppe A: | T6: Schiedsrichter:
B7: 1. | C7: =[1]Beschrieb!C6 -> BRS Gersweiler 1 | G7: 4. | H7: =[1]Beschrieb!C9 -> VSG Gelsenkirchen | M7: 7. | N7: =[1]Beschrieb!D8 -> BSG Offenburg
B8: 2. | C8: =[1]Beschrieb!C7 -> BSSV Köthen | G8: 5. | H8: =[1]Beschrieb!D6 -> ZGS Berlin | M8: 8. | N8: =[1]Beschrieb!D9 -> RSG Partenstein | T8: =[1]Beschrieb!C12 -> Beck Adolph | Y8: =[1]Beschrieb!D12 -> Schmid K.-H. | AC8: =[1]Beschrieb!E12 -> S.-Anh.--Berlin
B9: 3. | C9: =[1]Beschrieb!C8 -> TV Markgröningen | G9: 6. | H9: =[1]Beschrieb!D7 -> Rh. Wiesbaden 2 | M9: 9. | N9: =[1]Beschrieb!D10 -> BVS Weiden
T10: =[1]Beschrieb!C13 -> Schmid Angelika | Y10: =[1]Beschrieb!D13 -> Ahrend | AC10: =[1]Beschrieb!E13 -> NRW
B11: Teilnehmer Gruppe B
B12: 1. | C12: =[1]Beschrieb!E6 -> Rhinos Wiesbaden 1 | G12: 4. | H12: =[1]Beschrieb!E9 -> BRS Gersweiler 2 | M12: 7. | N12: =[1]Beschrieb!F8 -> Grevesmühlen | T12: =[1]Beschrieb!C14 -> Friedrich Christian | Y12: =[1]Beschrieb!D14 -> Bayern | AC12: =[1]Beschrieb!E14 -> Saarland
B13: 2. | C13: =[1]Beschrieb!E7 -> VSG Stadthagen | G13: 5. | H13: =[1]Beschrieb!F6 -> BRV Berlin | M13: 8. | N13: =[1]Beschrieb!F9 -> RBA Neumarkt
B14: 3. | C14: =[1]Beschrieb!E8 -> BSG Nordwalde | G14: 6. | H14: =[1]Beschrieb!F7 -> Rh. Leipzig | M14: 9. | N14: =[1]Beschrieb!F10 -> BSG Mettmann
B16: Spiel | E16: Bahn: | G16: Mannschaften: | T16: Linienrichter | Y16: Schiedsrichter | AD16: Ergebnis:
B17: Nr. | C17: DG Zeit
B19: 1 | C19: DG 1 12.15 | E19: 1 | G19: =C7 -> BRS Gersweiler 1 | N19: =H8 -> ZGS Berlin | T19: =H7 -> VSG Gelsenkirchen | Y19: =T8 -> Beck Adolph | AD19: 19 | AE19: : | AF19: 8
B20: 2 | E20: 2 | G20: =C8 -> BSSV Köthen | N20: =H9 -> Rh. Wiesbaden 2 | Y20: =T10 -> Schmid Angelika | AD20: 12 | AE20: : | AF20: 12
B21: 3 | E21: 3 | G21: =C9 -> TV Markgröningen | N21: =N7 -> BSG Offenburg | Y21: =T12 -> Friedrich Christian | AD21: 20 | AE21: : | AF21: 7
B22: 4 | E22: 4 | G22: =C12 -> Rhinos Wiesbaden 1 | N22: =H13 -> BRV Berlin | T22: =H12 -> BRS Gersweiler 2 | Y22: =Y8 -> Schmid K.-H. | AD22: 13 | AE22: : | AF22: 11
B23: 5 | E23: 5 | G23: =C13 -> VSG Stadthagen | N23: =H14 -> Rh. Leipzig | Y23: Rödel | AD23: 20 | AE23: : | AF23: 6
B24: 6 | E24: 6 | G24: =C14 -> BSG Nordwalde | N24: =N12 -> Grevesmühlen | Y24: NRW | AD24: 17 | AE24: : | AF24: 9
B26: 7 | C26: DG 2 13.05 | E26: 1 | G26: =H7 -> VSG Gelsenkirchen | N26: =N8 -> RSG Partenstein | T26: =C8 -> BSSV Köthen | Y26: Rödel | AD26: 14 | AE26: :
B27: 8 | E27: 2 | G27: =H8 -> ZGS Berlin | N27: =N9 -> BVS Weiden | Y27: Keller Thomas | AD27: 7 | AE27: : | AF27: 16
B28: 9 | E28: 3 | G28: =C7 -> BRS Gersweiler 1 | N28: =H9 -> Rh. Wiesbaden 2 | Y28: Sa.-Anhalt | AD28: 6 | AE28: : | AF28: 18
B29: 10 | E29: 4 | G29: =H12 -> BRS Gersweiler 2 | N29: =N13 -> RBA Neumarkt | T29: =C13 -> VSG Stadthagen | Y29: =T8 -> Beck Adolph | AD29: 13 | AE29: : | AF29: 5
B30: 11 | E30: 5 | G30: =H13 -> BRV Berlin | N30: =N14 -> BSG Mettmann | Y30: =T10 -> Schmid Angelika | AD30: 7 | AE30: : | AF30: 18
B31: 12 | E31: 6 | G31: =C12 -> Rhinos Wiesbaden 1 | N31: =H14 -> Rh. Leipzig | Y31: =T12 -> Friedrich Christian | AD31: 9 | AE31: : | AF31: 7
B33: 13 | C33: DG 3 14.00 | E33: 1 | G33: =C8 -> BSSV Köthen | N33: =N7 -> BSG Offenburg | T33: =C7 -> BRS Gersweiler 1 | Y33: Schmid Angel. | AD33: 21 | AE33: : | AF33: 11
B34: 14 | E34: 2 | G34: =C9 -> TV Markgröningen | N34: =N8 -> RSG Partenstein | Y34: Ahrens | AD34: 17 | AE34: : | AF34: 9
B35: 15 | E35: 3 | G35: =H7 -> VSG Gelsenkirchen | N35: =N9 -> BVS Weiden | Y35: Gersweiler 1 | AD35: 11 | AE35: : | AF35: 14
B36: 16 | E36: 4 | G36: =C13 -> VSG Stadthagen | N36: =N12 -> Grevesmühlen | T36: =C12 -> Rhinos Wiesbaden 1 | Y36: Berlin | AD36: 15 | AE36: : | AF36: 9
B37: 17 | E37: 5 | G37: =C14 -> BSG Nordwalde | N37: =N13 -> RBA Neumarkt | Y37: Rödel | AD37: 5 | AE37: : | AF37: 19
B38: 18 | E38: 6 | G38: =H12 -> BRS Gersweiler 2 | N38: =N14 -> BSG Mettmann | Y38: NRW | AD38: 13 | AE38: : | AF38: 10
B40: 19 | C40: DG 4 14.55 | E40: 1 | G40: =C7 -> BRS Gersweiler 1 | N40: =N7 -> BSG Offenburg | T40: =H8 -> ZGS Berlin | Y40: Bayern | AD40: 17 | AE40: : | AF40: 10
B41: 20 | E41: 2 | G41: =C8 -> BSSV Köthen | N41: =N8 -> RSG Partenstein | Y41: Friedrich Christian | AD41: 12 | AE41: : | AF41: 9
B42: 21 | E42: 3 | G42: =C9 -> TV Markgröningen | N42: =N9 -> BVS Weiden | Y42: Schmid Angelika | AD42: 9 | AE42: : | AF42: 12
B43: 22 | E43: 4 | G43: =C12 -> Rhinos Wiesbaden 1 | N43: =N12 -> Grevesmühlen | T43: =H13 -> BRV Berlin | Y43: Tamm | AD43: 10 | AE43: : | AF43: 12
B44: 23 | E44: 5 | G44: =C13 -> VSG Stadthagen | N44: =N13 -> RBA Neumarkt | Y44: Gersweiler 2 | AD44: 9 | AE44: : | AF44: 10
B45: 24 | E45: 6 | G45: =C14 -> BSG Nordwalde | N45: =N14 -> BSG Mettmann | Y45: NRW | AD45: 8 | AE45: : | AF45: 12
B47: 25 | C47: DG 5 15.45 | E47: 1 | G47: =H7 -> VSG Gelsenkirchen | N47: =H8 -> ZGS Berlin | T47: =C9 -> TV Markgröningen | Y47: Rödel | AD47: 13 | AE47: : | AF47: 10
B48: 26 | E48: 2 | G48: =H9 -> Rh. Wiesbaden 2 | N48: =N7 -> BSG Offenburg | Y48: Gersweiler 1 | AD48: 9 | AE48: : | AF48: 11
B49: 27 | E49: 3 | G49: =N8 -> RSG Partenstein | N49: =N9 -> BVS Weiden | Y49: Köthen | AD49: 11 | AE49: : | AF49: 15
B50: 28 | E50: 4 | G50: =H12 -> BRS Gersweiler 2 | N50: =H13 -> BRV Berlin | T50: =C14 -> BSG Nordwalde | Y50: Keller Thomas | AD50: 14 | AE50: : | AF50: 10
B51: 29 | E51: 5 | G51: =H14 -> Rh. Leipzig | N51: =N12 -> Grevesmühlen | Y51: =T10 -> Schmid Angelika | AD51: 7 | AE51: : | AF51: 12
B52: 30 | E52: 6 | G52: =N13 -> RBA Neumarkt | N52: =N14 -> BSG Mettmann | Y52: =T12 -> Friedrich Christian | AD52: 13 | AE52: : | AF52: 10
B54: 31 | C54: DG 6 16.35 | E54: 1 | G54: =C8 -> BSSV Köthen | N54: =C9 -> TV Markgröningen | T54: =N7 -> BSG Offenburg | Y54: =Y8 -> Schmid K.-H. | AD54: 15 | AE54: : | AF54: 11
B55: 32 | E55: 2 | G55: =C7 -> BRS Gersweiler 1 | N55: =H7 -> VSG Gelsenkirchen | Y55: Meckl. Vorp. | AD55: 9 | AE55: : | AF55: 11
B56: 33 | E56: 3 | G56: =H8 -> ZGS Berlin | N56: =H9 -> Rh. Wiesbaden 2 | Y56: =Y12 -> Bayern | AD56: 11 | AE56: : | AF56: 8
B57: 34 | E57: 4 | G57: =C13 -> VSG Stadthagen | N57: =C14 -> BSG Nordwalde | T57: =N12 -> Grevesmühlen | Y57: Rödel | AD57: 11 | AE57: : | AF57: 14
B58: 35 | E58: 5 | G58: =C12 -> Rhinos Wiesbaden 1 | N58: =H12 -> BRS Gersweiler 2 | Y58: Schmid Angel. | AD58: 9 | AE58: : | AF58: 14
B59: 36 | E59: 6 | G59: =H13 -> BRV Berlin | N59: =H14 -> Rh. Leipzig | Y59: NRW | AD59: 8 | AE59: : | AF59: 11
B61: 37 | C61: DG 7 17.30 | E61: 1 | G61: =C7 -> BRS Gersweiler 1 | N61: =C8 -> BSSV Köthen | T61: =H9 -> Rh. Wiesbaden 2 | Y61: =T8 -> Beck Adolph | AD61: 14 | AE61: : | AF61: 10
B62: 38 | E62: 2 | G62: =C9 -> TV Markgröningen | N62: =H7 -> VSG Gelsenkirchen | Y62: Friedrich Christian | AD62: 20 | AE62: : | AF62: 8
B63: 39 | E63: 3 | G63: =N7 -> BSG Offenburg | N63: =N8 -> RSG Partenstein | Y63: Schmid Angelika | AD63: 8 | AE63: : | AF63: 19
B64: 40 | E64: 4 | G64: =C12 -> Rhinos Wiesbaden 1 | N64: =C13 -> VSG Stadthagen | T64: =H14 -> Rh. Leipzig | Y64: =Y8 -> Schmid K.-H. | AD64: 8 | AE64: : | AF64: 13
B65: 41 | E65: 5 | G65: =C14 -> BSG Nordwalde | N65: =H12 -> BRS Gersweiler 2 | Y65: Tamm | AD65: 8 | AE65: : | AF65: 7
B66: 42 | E66: 6 | G66: =N12 -> Grevesmühlen | N66: =N13 -> RBA Neumarkt | Y66: Berlin | AD66: 6 | AE66: : | AF66: 16
B68: 43 | C68: DG 8 18:20 | E68: 1 | G68: =H9 -> Rh. Wiesbaden 2 | N68: =N9 -> BVS Weiden | T68: =C7 -> BRS Gersweiler 1 | Y68: Rödel | AD68: 8 | AE68: : | AF68: 19
B69: 44 | E69: 2 | G69: =H8 -> ZGS Berlin | N69: =N8 -> RSG Partenstein | Y69: Gersweiler 1 | AD69: 7 | AE69: : | AF69: 15
B70: 45 | E70: 3 | G70: =H7 -> VSG Gelsenkirchen | N70: =N7 -> BSG Offenburg | Y70: Sa.-Anh. | AD70: 24 | AE70: : | AF70: 6
B71: 46 | E71: 4 | G71: =H14 -> Rh. Leipzig | N71: =N14 -> BSG Mettmann | T71: =C12 -> Rhinos Wiesbaden 1 | Y71: =T8 -> Beck Adolph | AD71: 16 | AE71: : | AF71: 9
B72: 47 | E72: 5 | G72: =H13 -> BRV Berlin | N72: =N13 -> RBA Neumarkt | Y72: Keller Thomas | AD72: 7 | AE72: : | AF72: 17
B73: 48 | E73: 6 | G73: =H12 -> BRS Gersweiler 2 | N73: =N12 -> Grevesmühlen | Y73: NRW | AD73: 11 | AE73: : | AF73: 11
G74: Unterbrechung bis Samstag 9:00 Uhr
B75: 49 | C75: DG 9 9:05 | E75: 1 | G75: =C9 -> TV Markgröningen | N75: =H9 -> Rh. Wiesbaden 2 | T75: =N8 -> RSG Partenstein | Y75: =Y8 -> Schmid K.-H. | AD75: 13 | AE75: : | AF75: 11
B76: 50 | E76: 2 | G76: =C8 -> BSSV Köthen | N76: =H8 -> ZGS Berlin | Y76: Meckl.-Vorp. | AD76: 15 | AE76: : | AF76: 9
B77: 51 | E77: 3 | G77: =C7 -> BRS Gersweiler 1 | N77: =N9 -> BVS Weiden | Y77: =Y12 -> Bayern | AD77: 16 | AE77: : | AF77: 10
B78: 52 | E78: 4 | G78: =C14 -> BSG Nordwalde | N78: =H14 -> Rh. Leipzig | T78: =N13 -> RBA Neumarkt | Y78: Gersweiler2 | AD78: 20 | AE78: : | AF78: 4
B79: 53 | E79: 5 | G79: =C13 -> VSG Stadthagen | N79: =H13 -> BRV Berlin | Y79: NRW | AD79: 11 | AE79: : | AF79: 13
B80: 54 | E80: 6 | G80: =C12 -> Rhinos Wiesbaden 1 | N80: =N14 -> BSG Mettmann | Y80: Schmid Angelika | AD80: 9 | AE80: : | AF80: 12
B82: 55 | C82: DG 10 10.00 | E82: 1 | G82: =H7 -> VSG Gelsenkirchen | N82: =H9 -> Rh. Wiesbaden 2 | T82: =N9 -> BVS Weiden | Y82: Sa.-Anh. | AD82: 16 | AE82: : | AF82: 11
B83: 56 | E83: 2 | G83: =H8 -> ZGS Berlin | N83: =N7 -> BSG Offenburg | Y83: Rödel | AD83: 12 | AE83: : | AF83: 10
B84: 57 | E84: 3 | G84: =C7 -> BRS Gersweiler 1 | N84: =N8 -> RSG Partenstein | Y84: =T12 -> Friedrich Christian | AD84: 12 | AE84: : | AF84: 14
B85: 58 | E85: 4 | G85: =H12 -> BRS Gersweiler 2 | N85: =H14 -> Rh. Leipzig | T85: =N14 -> BSG Mettmann | Y85: =Y8 -> Schmid K.-H. | AD85: 15 | AE85: : | AF85: 8
B86: 59 | E86: 5 | G86: =H13 -> BRV Berlin | N86: =N12 -> Grevesmühlen | Y86: Keller Thomas | AD86: 14 | AE86: : | AF86: 15
B87: 60 | E87: 6 | G87: =C12 -> Rhinos Wiesbaden 1 | N87: =N13 -> RBA Neumarkt | Y87: =Y12 -> Bayern | AD87: 10 | AE87: : | AF87: 9
B89: 61 | C89: Dg 11 10.50 | E89: 1 | G89: =C8 -> BSSV Köthen | N89: =N9 -> BVS Weiden | T89: =H7 -> VSG Gelsenkirchen | Y89: Gersweiler 1 | AD89: 13 | AE89: : | AF89: 10
B90: 62 | E90: 2 | G90: =C9 -> TV Markgröningen | N90: =H8 -> ZGS Berlin | Y90: Meckl.-Vorp. | AD90: 16 | AE90: : | AF90: 9
B91: 63 | E91: 3 | G91: =H9 -> Rh. Wiesbaden 2 | N91: =N8 -> RSG Partenstein | Y91: NRW | AD91: 7 | AE91: : | AF91: 14
B92: 64 | E92: 4 | G92: =C13 -> VSG Stadthagen | N92: =N14 -> BSG Mettmann | T92: =H12 -> BRS Gersweiler 2 | Y92: Gersweiler 2 | AD92: 13 | AE92: : | AF92: 11
B93: 65 | E93: 5 | G93: =C14 -> BSG Nordwalde | N93: =H13 -> BRV Berlin | Y93: =T10 -> Schmid Angelika | AD93: 11 | AE93: : | AF93: 9
B94: 66 | E94: 6 | G94: =H14 -> Rh. Leipzig | N94: =N13 -> RBA Neumarkt | Y94: =T12 -> Friedrich Christian | AD94: 9 | AE94: : | AF94: 11
B96: 67 | C96: DG 12 11.40 | E96: 1 | G96: =N7 -> BSG Offenburg | N96: =N9 -> BVS Weiden | T96: =H8 -> ZGS Berlin | Y96: =Y8 -> Schmid K.-H. | AD96: 8 | AE96: : | AF96: 25
B97: 68 | E97: 2 | G97: =C8 -> BSSV Köthen | N97: =H7 -> VSG Gelsenkirchen | Y97: Berlin | AD97: 15 | AE97: : | AF97: 9
B98: 69 | E98: 3 | G98: =C7 -> BRS Gersweiler 1 | N98: =C9 -> TV Markgröningen | Y98: Rödel | AD98: 8 | AE98: : | AF98: 9
B99: 70 | E99: 4 | G99: =N12 -> Grevesmühlen | N99: =N14 -> BSG Mettmann | T99: =H13 -> BRV Berlin | Y99: Schmid Angelika | AD99: 8 | AE99: : | AF99: 14
B100: 71 | E100: 5 | G100: =C13 -> VSG Stadthagen | N100: =H12 -> BRS Gersweiler 2 | Y100: Beck Adolph | AD100: 8 | AE100: : | AF100: 15
B101: 72 | E101: 6 | G101: =C12 -> Rhinos Wiesbaden 1 | N101: =C14 -> BSG Nordwalde | Y101: Tamm | AD101: 18 | AE101: : | AF101: 7
C103: 1. Gr. A: | G103: 1.A | P103: 1. Gr. B: | U103: 1.B | AC103: Plätze 1 bis 4
C104: 2. Gr. A: | G104: 2.A | P104: 2. Gr. B: | U104: 2.B
C105: 3. Gr. A: | G105: 3.A | P105: 3. Gr. B: | U105: 3.B | AC105: Plätze 5 bis 8
C106: 4. Gr. A: | G106: 4.A | P106: 4. Gr. B: | U106: 4.B
C107: 5. Gr. A: | G107: 5.A | P107: 5. Gr. B: | U107: 5.B | AC107: Plätze 9 bis 12
C108: 6. Gr. A: | G108: 6.A | P108: 6. Gr. B: | U108: 6.B
C109: 7. Gr. A: | G109: 7.A | P109: 7. Gr. B: | U109: 7.B | AC109: Plätze 13 bis 16
C110: 8. Gr. A: | G110: 8.A | P110: 8. Gr. B: | U110: 8.B
C111: 9. Gr. A: | G111: 9.A | P111: 9. Gr. B: | U111: 9.B | AC111: Platz 17 und 18

Sheet Auswertung
D2: =[1]Beschrieb!$C$1 -> 19. Deutsche Meisterschft im Boccia (Halle)
A3: Vereine | C3: =[1]Beschrieb!$C$6 -> BRS Gersweiler 1 | E3: =[1]Beschrieb!$C$7 -> BSSV Köthen | G3: =[1]Beschrieb!$C$8 -> TV Markgröningen | I3: =[1]Beschrieb!$C$9 -> VSG Gelsenkirchen | K3: =[1]Beschrieb!$D$6 -> ZGS Berlin | M3: =[1]Beschrieb!$D$7 -> Rh. Wiesbaden 2 | O3: =[1]Beschrieb!$D$8 -> BSG Offenburg | Q3: =[1]Beschrieb!$D$9 -> RSG Partenstein | S3: =[1]Beschrieb!$D$10 -> BVS Weiden | U3: Treffer | W3: Pluspunkte | X3: Platz
U4: Punkte
C5: + | D5: - | F5: - | G5: + | H5: - | I5: + | J5: - | K5: + | L5: - | M5: + | N5: - | O5: + | P5: - | Q5: + | R5: - | S5: + | T5: - | U5: + | V5: -
B6: =[1]Beschrieb!$C$6 -> BRS Gersweiler 1 | E6: ='SpPl. Vorrd.'!AD61 -> 14 | F6: ='SpPl. Vorrd.'!AF61 -> 10 | G6: ='SpPl. Vorrd.'!AD98 -> 8 | H6: ='SpPl. Vorrd.'!AF98 -> 9 | I6: ='SpPl. Vorrd.'!AD55 -> 9 | J6: ='SpPl. Vorrd.'!AF55 -> 11 | K6: ='SpPl. Vorrd.'!AD19 -> 19 | L6: ='SpPl. Vorrd.'!AF19 -> 8 | M6: ='SpPl. Vorrd.'!AD28 -> 6 | N6: ='SpPl. Vorrd.'!AF28 -> 18 | O6: ='SpPl. Vorrd.'!AD40 -> 17 | P6: ='SpPl. Vorrd.'!AF40 -> 10 | Q6: ='SpPl. Vorrd.'!AD84 -> 12 | R6: ='SpPl. Vorrd.'!AF84 -> 14 | S6: ='SpPl. Vorrd.'!AD77 -> 16 | T6: ='SpPl. Vorrd.'!AF77 -> 10 | U6: =SUM(C6,E6,G6,I6,K6,M6,O6,Q6,S6,) -> 101 | V6: =SUM(D6,F6,H6,J6,L6,N6,P6,R6,T6,) -> 90 | W6: =U7 -> 8 | X6: 6
E7: =IF(E6>F6,2,IF(E6+F6=0,0,IF(E6=F6,1,0))) -> 2 | F7: =IF(E6<F6,2,IF(E6+F6=0,0,IF(E6=F6,1,0))) -> 0 | G7: =IF(G6>H6,2,IF(G6+H6=0,0,IF(G6=H6,1,0))) -> 0 | H7: =IF(G6<H6,2,IF(G6+H6=0,0,IF(G6=H6,1,0))) -> 2 | I7: =IF(I6>J6,2,IF(I6+J6=0,0,IF(I6=J6,1,0))) -> 0 | J7: =IF(I6<J6,2,IF(I6+J6=0,0,IF(I6=J6,1,0))) -> 2 | K7: =IF(K6>L6,2,IF(K6+L6=0,0,IF(K6=L6,1,0))) -> 2 | L7: =IF(K6<L6,2,IF(K6+L6=0,0,IF(K6=L6,1,0))) -> 0 | M7: =IF(M6>N6,2,IF(M6+N6=0,0,IF(M6=N6,1,0))) -> 0 | N7: =IF(M6<N6,2,IF(M6+N6=0,0,IF(M6=N6,1,0))) -> 2 | O7: =IF(O6>P6,2,IF(O6+P6=0,0,IF(O6=P6,1,0))) -> 2 | P7: =IF(O6<P6,2,IF(O6+P6=0,0,IF(O6=P6,1,0))) -> 0 | Q7: =IF(Q6>R6,2,IF(Q6+R6=0,0,IF(Q6=R6,1,0))) -> 0 | R7: =IF(Q6<R6,2,IF(Q6+R6=0,0,IF(Q6=R6,1,0))) -> 2 | S7: =IF(S6>T6,2,IF(S6+T6=0,0,IF(S6=T6,1,0))) -> 2 | T7: =IF(S6<T6,2,IF(S6+T6=0,0,IF(S6=T6,1,0))) -> 0 | U7: =SUM(C7,E7,G7,I7,K7,M7,O7,Q7,S7) -> 8
B8: =[1]Beschrieb!$C$7 -> BSSV Köthen | C8: ='SpPl. Vorrd.'!AF61 -> 10 | D8: ='SpPl. Vorrd.'!AD61 -> 14 | G8: ='SpPl. Vorrd.'!AD54 -> 15 | H8: ='SpPl. Vorrd.'!AF54 -> 11 | I8: ='SpPl. Vorrd.'!AD97 -> 15 | J8: ='SpPl. Vorrd.'!AF97 -> 9 | K8: ='SpPl. Vorrd.'!AD76 -> 15 | L8: ='SpPl. Vorrd.'!AF76 -> 9 | M8: ='SpPl. Vorrd.'!AD20 -> 12 | N8: ='SpPl. Vorrd.'!AF20 -> 12 | O8: ='SpPl. Vorrd.'!AD33 -> 21 | P8: ='SpPl. Vorrd.'!AF33 -> 11 | Q8: ='SpPl. Vorrd.'!AD41 -> 12 | R8: ='SpPl. Vorrd.'!AF41 -> 9 | S8: ='SpPl. Vorrd.'!AD89 -> 13 | T8: ='SpPl. Vorrd.'!AF89 -> 10 | U8: =SUM(C8,E8,G8,I8,K8,M8,O8,Q8,S8,) -> 113 | V8: =SUM(D8,F8,H8,J8,L8,N8,P8,R8,T8,) -> 85 | W8: =U9 -> 13 | X8: 1
C9: =IF(C8>D8,2,IF(C8+D8=0,0,IF(C8=D8,1,0))) -> 0 | D9: =IF(C8<D8,2,IF(C8+D8=0,0,IF(C8=D8,1,0))) -> 2 | G9: =IF(G8>H8,2,IF(G8+H8=0,0,IF(G8=H8,1,0))) -> 2 | H9: =IF(G8<H8,2,IF(G8+H8=0,0,IF(G8=H8,1,0))) -> 0 | I9: =IF(I8>J8,2,IF(I8+J8=0,0,IF(I8=J8,1,0))) -> 2 | J9: =IF(I8<J8,2,IF(I8+J8=0,0,IF(I8=J8,1,0))) -> 0 | K9: =IF(K8>L8,2,IF(K8+L8=0,0,IF(K8=L8,1,0))) -> 2 | L9: =IF(K8<L8,2,IF(K8+L8=0,0,IF(K8=L8,1,0))) -> 0 | M9: =IF(M8>N8,2,IF(M8+N8=0,0,IF(M8=N8,1,0))) -> 1 | N9: =IF(M8<N8,2,IF(M8+N8=0,0,IF(M8=N8,1,0))) -> 1 | O9: =IF(O8>P8,2,IF(O8+P8=0,0,IF(O8=P8,1,0))) -> 2 | P9: =IF(O8<P8,2,IF(O8+P8=0,0,IF(O8=P8,1,0))) -> 0 | Q9: =IF(Q8>R8,2,IF(Q8+R8=0,0,IF(Q8=R8,1,0))) -> 2 | R9: =IF(Q8<R8,2,IF(Q8+R8=0,0,IF(Q8=R8,1,0))) -> 0 | S9: =IF(S8>T8,2,IF(S8+T8=0,0,IF(S8=T8,1,0))) -> 2 | T9: =IF(S8<T8,2,IF(S8+T8=0,0,IF(S8=T8,1,0))) -> 0 | U9: =SUM(C9,E9,G9,I9,K9,M9,O9,Q9,S9) -> 13
B10: =[1]Beschrieb!$C$8 -> TV Markgröningen | C10: ='SpPl. Vorrd.'!AF98 -> 9 | D10: ='SpPl. Vorrd.'!AD98 -> 8 | E10: ='SpPl. Vorrd.'!AF54 -> 11 | F10: ='SpPl. Vorrd.'!AD54 -> 15 | I10: ='SpPl. Vorrd.'!AD62 -> 20 | J10: ='SpPl. Vorrd.'!AF62 -> 8 | K10: ='SpPl. Vorrd.'!AD90 -> 16 | L10: ='SpPl. Vorrd.'!AF90 -> 9 | M10: ='SpPl. Vorrd.'!AD75 -> 13 | N10: ='SpPl. Vorrd.'!AF75 -> 11 | O10: ='SpPl. Vorrd.'!AD21 -> 20 | P10: ='SpPl. Vorrd.'!AF21 -> 7 | Q10: ='SpPl. Vorrd.'!AD34 -> 17 | R10: ='SpPl. Vorrd.'!AF34 -> 9 | S10: ='SpPl. Vorrd.'!AD42 -> 9 | T10: ='SpPl. Vorrd.'!AF42 -> 12 | U10: =SUM(C10,E10,G10,I10,K10,M10,O10,Q10,S10,) -> 115 | V10: =SUM(D10,F10,H10,J10,L10,N10,P10,R10,T10,) -> 79 | W10: =U11 -> 12 | X10: 3
C11: =IF(C10>D10,2,IF(C10+D10=0,0,IF(C10=D10,1,0))) -> 2 | D11: =IF(C10<D10,2,IF(C10+D10=0,0,IF(C10=D10,1,0))) -> 0 | E11: =IF(E10>F10,2,IF(E10+F10=0,0,IF(E10=F10,1,0))) -> 0 | F11: =IF(E10<F10,2,IF(E10+F10=0,0,IF(E10=F10,1,0))) -> 2 | I11: =IF(I10>J10,2,IF(I10+J10=0,0,IF(I10=J10,1,0))) -> 2 | J11: =IF(I10<J10,2,IF(I10+J10=0,0,IF(I10=J10,1,0))) -> 0 | K11: =IF(K10>L10,2,IF(K10+L10=0,0,IF(K10=L10,1,0))) -> 2 | L11: =IF(K10<L10,2,IF(K10+L10=0,0,IF(K10=L10,1,0))) -> 0 | M11: =IF(M10>N10,2,IF(M10+N10=0,0,IF(M10=N10,1,0))) -> 2 | N11: =IF(M10<N10,2,IF(M10+N10=0,0,IF(M10=N10,1,0))) -> 0 | O11: =IF(O10>P10,2,IF(O10+P10=0,0,IF(O10=P10,1,0))) -> 2 | P11: =IF(O10<P10,2,IF(O10+P10=0,0,IF(O10=P10,1,0))) -> 0 | Q11: =IF(Q10>R10,2,IF(Q10+R10=0,0,IF(Q10=R10,1,0))) -> 2 | R11: =IF(Q10<R10,2,IF(Q10+R10=0,0,IF(Q10=R10,1,0))) -> 0 | S11: =IF(S10>T10,2,IF(S10+T10=0,0,IF(S10=T10,1,0))) -> 0 | T11: =IF(S10<T10,2,IF(S10+T10=0,0,IF(S10=T10,1,0))) -> 2 | U11: =SUM(C11,E11,G11,I11,K11,M11,O11,Q11,S11) -> 12
B12: =[1]Beschrieb!$C$9 -> VSG Gelsenkirchen | C12: ='SpPl. Vorrd.'!AF55 -> 11 | D12: ='SpPl. Vorrd.'!AD55 -> 9 | E12: ='SpPl. Vorrd.'!AF97 -> 9 | F12: ='SpPl. Vorrd.'!AD97 -> 15 | G12: ='SpPl. Vorrd.'!AF62 -> 8 | H12: ='SpPl. Vorrd.'!AD62 -> 20 | K12: ='SpPl. Vorrd.'!AD47 -> 13 | L12: ='SpPl. Vorrd.'!AF47 -> 10 | M12: ='SpPl. Vorrd.'!AD82 -> 16 | N12: ='SpPl. Vorrd.'!AF82 -> 11 | O12: ='SpPl. Vorrd.'!AD70 -> 24 | P12: ='SpPl. Vorrd.'!AF70 -> 6 | Q12: ='SpPl. Vorrd.'!AD26 -> 14 | R12: ='SpPl. Vorrd.'!AF26 -> 0 | S12: ='SpPl. Vorrd.'!AD35 -> 11 | T12: ='SpPl. Vorrd.'!AF35 -> 14 | U12: =SUM(C12,E12,G12,I12,K12,M12,O12,Q12,S12,) -> 106 | V12: =SUM(D12,F12,H12,J12,L12,N12,P12,R12,T12,) -> 85 | W12: =U13 -> 10 | X12: 4
C13: =IF(C12>D12,2,IF(C12+D12=0,0,IF(C12=D12,1,0))) -> 2 | D13: =IF(C12<D12,2,IF(C12+D12=0,0,IF(C12=D12,1,0))) -> 0 | E13: =IF(E12>F12,2,IF(E12+F12=0,0,IF(E12=F12,1,0))) -> 0 | F13: =IF(E12<F12,2,IF(E12+F12=0,0,IF(E12=F12,1,0))) -> 2 | G13: =IF(G12>H12,2,IF(G12+H12=0,0,IF(G12=H12,1,0))) -> 0 | H13: =IF(G12<H12,2,IF(G12+H12=0,0,IF(G12=H12,1,0))) -> 2 | K13: =IF(K12>L12,2,IF(K12+L12=0,0,IF(K12=L12,1,0))) -> 2 | L13: =IF(K12<L12,2,IF(K12+L12=0,0,IF(K12=L12,1,0))) -> 0 | M13: =IF(M12>N12,2,IF(M12+N12=0,0,IF(M12=N12,1,0))) -> 2 | N13: =IF(M12<N12,2,IF(M12+N12=0,0,IF(M12=N12,1,0))) -> 0 | O13: =IF(O12>P12,2,IF(O12+P12=0,0,IF(O12=P12,1,0))) -> 2 | P13: =IF(O12<P12,2,IF(O12+P12=0,0,IF(O12=P12,1,0))) -> 0 | Q13: =IF(Q12>R12,2,IF(Q12+R12=0,0,IF(Q12=R12,1,0))) -> 2 | R13: =IF(Q12<R12,2,IF(Q12+R12=0,0,IF(Q12=R12,1,0))) -> 0 | S13: =IF(S12>T12,2,IF(S12+T12=0,0,IF(S12=T12,1,0))) -> 0 | T13: =IF(S12<T12,2,IF(S12+T12=0,0,IF(S12=T12,1,0))) -> 2 | U13: =SUM(C13,E13,G13,I13,K13,M13,O13,Q13,S13) -> 10
B14: =[1]Beschrieb!$D$6 -> ZGS Berlin | C14: ='SpPl. Vorrd.'!AF19 -> 8 | D14: ='SpPl. Vorrd.'!AD19 -> 19 | E14: ='SpPl. Vorrd.'!AF76 -> 9 | F14: ='SpPl. Vorrd.'!AD76 -> 15 | G14: ='SpPl. Vorrd.'!AF90 -> 9 | H14: ='SpPl. Vorrd.'!AD90 -> 16 | I14: ='SpPl. Vorrd.'!AF47 -> 10 | J14: ='SpPl. Vorrd.'!AD47 -> 13 | M14: ='SpPl. Vorrd.'!AD56 -> 11 | N14: ='SpPl. Vorrd.'!AF56 -> 8 | O14: ='SpPl. Vorrd.'!AD83 -> 12 | P14: ='SpPl. Vorrd.'!AF83 -> 10 | Q14: ='SpPl. Vorrd.'!AD69 -> 7 | R14: ='SpPl. Vorrd.'!AF69 -> 15 | S14: ='SpPl. Vorrd.'!AD27 -> 7 | T14: ='SpPl. Vorrd.'!AF27 -> 16 | U14: =SUM(C14,E14,G14,I14,K14,M14,O14,Q14,S14,) -> 73 | V14: =SUM(D14,F14,H14,J14,L14,N14,P14,R14,T14,) -> 112 | W14: =U15 -> 4 | X14: 7
C15: =IF(C14>D14,2,IF(C14+D14=0,0,IF(C14=D14,1,0))) -> 0 | D15: =IF(C14<D14,2,IF(C14+D14=0,0,IF(C14=D14,1,0))) -> 2 | E15: =IF(E14>F14,2,IF(E14+F14=0,0,IF(E14=F14,1,0))) -> 0 | F15: =IF(E14<F14,2,IF(E14+F14=0,0,IF(E14=F14,1,0))) -> 2 | G15: =IF(G14>H14,2,IF(G14+H14=0,0,IF(G14=H14,1,0))) -> 0 | H15: =IF(G14<H14,2,IF(G14+H14=0,0,IF(G14=H14,1,0))) -> 2 | I15: =IF(I14>J14,2,IF(I14+J14=0,0,IF(I14=J14,1,0))) -> 0 | J15: =IF(I14<J14,2,IF(I14+J14=0,0,IF(I14=J14,1,0))) -> 2 | M15: =IF(M14>N14,2,IF(M14+N14=0,0,IF(M14=N14,1,0))) -> 2 | N15: =IF(M14<N14,2,IF(M14+N14=0,0,IF(M14=N14,1,0))) -> 0 | O15: =IF(O14>P14,2,IF(O14+P14=0,0,IF(O14=P14,1,0))) -> 2 | P15: =IF(O14<P14,2,IF(O14+P14=0,0,IF(O14=P14,1,0))) -> 0 | Q15: =IF(Q14>R14,2,IF(Q14+R14=0,0,IF(Q14=R14,1,0))) -> 0 | R15: =IF(Q14<R14,2,IF(Q14+R14=0,0,IF(Q14=R14,1,0))) -> 2 | S15: =IF(S14>T14,2,IF(S14+T14=0,0,IF(S14=T14,1,0))) -> 0 | T15: =IF(S14<T14,2,IF(S14+T14=0,0,IF(S14=T14,1,0))) -> 2 | U15: =SUM(C15,E15,G15,I15,K15,M15,O15,Q15,S15) -> 4
B16: =[1]Beschrieb!$D$7 -> Rh. Wiesbaden 2 | C16: ='SpPl. Vorrd.'!AF28 -> 18 | D16: ='SpPl. Vorrd.'!AD28 -> 6 | E16: ='SpPl. Vorrd.'!AF20 -> 12 | F16: ='SpPl. Vorrd.'!AD20 -> 12 | G16: ='SpPl. Vorrd.'!AF75 -> 11 | H16: ='SpPl. Vorrd.'!AD75 -> 13 | I16: ='SpPl. Vorrd.'!AF82 -> 11 | J16: ='SpPl. Vorrd.'!AD82 -> 16 | K16: ='SpPl. Vorrd.'!AF56 -> 8 | L16: ='SpPl. Vorrd.'!AD56 -> 11 | O16: ='SpPl. Vorrd.'!AD48 -> 9 | P16: ='SpPl. Vorrd.'!AF48 -> 11 | Q16: ='SpPl. Vorrd.'!AD91 -> 7 | R16: ='SpPl. Vorrd.'!AF91 -> 14 | S16: ='SpPl. Vorrd.'!AD68 -> 8 | T16: ='SpPl. Vorrd.'!AF68 -> 19 | U16: =SUM(C16,E16,G16,I16,K16,M16,O16,Q16,S16,) -> 84 | V16: =SUM(D16,F16,H16,J16,L16,N16,P16,R16,T16,) -> 102 | W16: =U17 -> 3 | X16: 8
C17: =IF(C16>D16,2,IF(C16+D16=0,0,IF(C16=D16,1,0))) -> 2 | D17: =IF(C16<D16,2,IF(C16+D16=0,0,IF(C16=D16,1,0))) -> 0 | E17: =IF(E16>F16,2,IF(E16+F16=0,0,IF(E16=F16,1,0))) -> 1 | F17: =IF(E16<F16,2,IF(E16+F16=0,0,IF(E16=F16,1,0))) -> 1 | G17: =IF(G16>H16,2,IF(G16+H16=0,0,IF(G16=H16,1,0))) -> 0 | H17: =IF(G16<H16,2,IF(G16+H16=0,0,IF(G16=H16,1,0))) -> 2 | I17: =IF(I16>J16,2,IF(I16+J16=0,0,IF(I16=J16,1,0))) -> 0 | J17: =IF(I16<J16,2,IF(I16+J16=0,0,IF(I16=J16,1,0))) -> 2 | K17: =IF(K16>L16,2,IF(K16+L16=0,0,IF(K16=L16,1,0))) -> 0 | L17: =IF(K16<L16,2,IF(K16+L16=0,0,IF(K16=L16,1,0))) -> 2 | O17: =IF(O16>P16,2,IF(O16+P16=0,0,IF(O16=P16,1,0))) -> 0 | P17: =IF(O16<P16,2,IF(O16+P16=0,0,IF(O16=P16,1,0))) -> 2 | Q17: =IF(Q16>R16,2,IF(Q16+R16=0,0,IF(Q16=R16,1,0))) -> 0 | R17: =IF(Q16<R16,2,IF(Q16+R16=0,0,IF(Q16=R16,1,0))) -> 2 | S17: =IF(S16>T16,2,IF(S16+T16=0,0,IF(S16=T16,1,0))) -> 0 | T17: =IF(S16<T16,2,IF(S16+T16=0,0,IF(S16=T16,1,0))) -> 2 | U17: =SUM(C17,E17,G17,I17,K17,M17,O17,Q17,S17) -> 3
B18: =[1]Beschrieb!$D$8 -> BSG Offenburg | C18: ='SpPl. Vorrd.'!AF40 -> 10 | D18: ='SpPl. Vorrd.'!AD40 -> 17 | E18: ='SpPl. Vorrd.'!AF33 -> 11 | F18: ='SpPl. Vorrd.'!AD33 -> 21 | G18: ='SpPl. Vorrd.'!AF21 -> 7 | H18: ='SpPl. Vorrd.'!AD21 -> 20 | I18: ='SpPl. Vorrd.'!AF70 -> 6 | J18: ='SpPl. Vorrd.'!AD70 -> 24 | K18: ='SpPl. Vorrd.'!AF83 -> 10 | L18: ='SpPl. Vorrd.'!AD83 -> 12 | M18: ='SpPl. Vorrd.'!AF48 -> 11 | N18: ='SpPl. Vorrd.'!AD48 -> 9 | Q18: ='SpPl. Vorrd.'!AD63 -> 8 | R18: ='SpPl. Vorrd.'!AF63 -> 19 | S18: ='SpPl. Vorrd.'!AD96 -> 8 | T18: ='SpPl. Vorrd.'!AF96 -> 25 | U18: =SUM(C18,E18,G18,I18,K18,M18,O18,Q18,S18,) -> 71 | V18: =SUM(D18,F18,H18,J18,L18,N18,P18,R18,T18,) -> 147 | W18: =U19 -> 2 | X18: 9
C19: =IF(C18>D18,2,IF(C18+D18=0,0,IF(C18=D18,1,0))) -> 0 | D19: =IF(C18<D18,2,IF(C18+D18=0,0,IF(C18=D18,1,0))) -> 2 | E19: =IF(E18>F18,2,IF(E18+F18=0,0,IF(E18=F18,1,0))) -> 0 | F19: =IF(E18<F18,2,IF(E18+F18=0,0,IF(E18=F18,1,0))) -> 2 | G19: =IF(G18>H18,2,IF(G18+H18=0,0,IF(G18=H18,1,0))) -> 0 | H19: =IF(G18<H18,2,IF(G18+H18=0,0,IF(G18=H18,1,0))) -> 2 | I19: =IF(I18>J18,2,IF(I18+J18=0,0,IF(I18=J18,1,0))) -> 0 | J19: =IF(I18<J18,2,IF(I18+J18=0,0,IF(I18=J18,1,0))) -> 2 | K19: =IF(K18>L18,2,IF(K18+L18=0,0,IF(K18=L18,1,0))) -> 0 | L19: =IF(K18<L18,2,IF(K18+L18=0,0,IF(K18=L18,1,0))) -> 2 | M19: =IF(M18>N18,2,IF(M18+N18=0,0,IF(M18=N18,1,0))) -> 2 | N19: =IF(M18<N18,2,IF(M18+N18=0,0,IF(M18=N18,1,0))) -> 0 | Q19: =IF(Q18>R18,2,IF(Q18+R18=0,0,IF(Q18=R18,1,0))) -> 0 | R19: =IF(Q18<R18,2,IF(Q18+R18=0,0,IF(Q18=R18,1,0))) -> 2 | S19: =IF(S18>T18,2,IF(S18+T18=0,0,IF(S18=T18,1,0))) -> 0 | T19: =IF(S18<T18,2,IF(S18+T18=0,0,IF(S18=T18,1,0))) -> 2 | U19: =SUM(C19,E19,G19,I19,K19,M19,O19,Q19,S19) -> 2
B20: =[1]Beschrieb!$D$9 -> RSG Partenstein | C20: ='SpPl. Vorrd.'!AF84 -> 14 | D20: ='SpPl. Vorrd.'!AD84 -> 12 | E20: ='SpPl. Vorrd.'!AF41 -> 9 | F20: ='SpPl. Vorrd.'!AD41 -> 12 | G20: ='SpPl. Vorrd.'!AF34 -> 9 | H20: ='SpPl. Vorrd.'!AD34 -> 17 | I20: ='SpPl. Vorrd.'!AF26 -> 0 | J20: ='SpPl. Vorrd.'!AD26 -> 14 | K20: ='SpPl. Vorrd.'!AF69 -> 15 | L20: ='SpPl. Vorrd.'!AD69 -> 7 | M20: ='SpPl. Vorrd.'!AF91 -> 14 | N20: ='SpPl. Vorrd.'!AD91 -> 7 | O20: ='SpPl. Vorrd.'!AF63 -> 19 | P20: ='SpPl. Vorrd.'!AD63 -> 8 | S20: ='SpPl. Vorrd.'!AD49 -> 11 | T20: ='SpPl. Vorrd.'!AF49 -> 15 | U20: =SUM(C20,E20,G20,I20,K20,M20,O20,Q20,S20,) -> 91 | V20: =SUM(D20,F20,H20,J20,L20,N20,P20,R20,T20,) -> 92 | W20: =U21 -> 8 | X20: 5
C21: =IF(C20>D20,2,IF(C20+D20=0,0,IF(C20=D20,1,0))) -> 2 | D21: =IF(C20<D20,2,IF(C20+D20=0,0,IF(C20=D20,1,0))) -> 0 | E21: =IF(E20>F20,2,IF(E20+F20=0,0,IF(E20=F20,1,0))) -> 0 | F21: =IF(E20<F20,2,IF(E20+F20=0,0,IF(E20=F20,1,0))) -> 2 | G21: =IF(G20>H20,2,IF(G20+H20=0,0,IF(G20=H20,1,0))) -> 0 | H21: =IF(G20<H20,2,IF(G20+H20=0,0,IF(G20=H20,1,0))) -> 2 | I21: =IF(I20>J20,2,IF(I20+J20=0,0,IF(I20=J20,1,0))) -> 0 | J21: =IF(I20<J20,2,IF(I20+J20=0,0,IF(I20=J20,1,0))) -> 2 | K21: =IF(K20>L20,2,IF(K20+L20=0,0,IF(K20=L20,1,0))) -> 2 | L21: =IF(K20<L20,2,IF(K20+L20=0,0,IF(K20=L20,1,0))) -> 0 | M21: =IF(M20>N20,2,IF(M20+N20=0,0,IF(M20=N20,1,0))) -> 2 | N21: =IF(M20<N20,2,IF(M20+N20=0,0,IF(M20=N20,1,0))) -> 0 | O21: =IF(O20>P20,2,IF(O20+P20=0,0,IF(O20=P20,1,0))) -> 2 | P21: =IF(O20<P20,2,IF(O20+P20=0,0,IF(O20=P20,1,0))) -> 0 | S21: =IF(S20>T20,2,IF(S20+T20=0,0,IF(S20=T20,1,0))) -> 0 | T21: =IF(S20<T20,2,IF(S20+T20=0,0,IF(S20=T20,1,0))) -> 2 | U21: =SUM(C21,E21,G21,I21,K21,M21,O21,Q21,S21) -> 8
B22: =[1]Beschrieb!$D$10 -> BVS Weiden | C22: ='SpPl. Vorrd.'!AF77 -> 10 | D22: ='SpPl. Vorrd.'!AD77 -> 16 | E22: ='SpPl. Vorrd.'!AF89 -> 10 | F22: ='SpPl. Vorrd.'!AD89 -> 13 | G22: ='SpPl. Vorrd.'!AF42 -> 12 | H22: ='SpPl. Vorrd.'!AD42 -> 9 | I22: ='SpPl. Vorrd.'!AF35 -> 14 | J22: ='SpPl. Vorrd.'!AD35 -> 11 | K22: ='SpPl. Vorrd.'!AF27 -> 16 | L22: ='SpPl. Vorrd.'!AD27 -> 7 | M22: ='SpPl. Vorrd.'!AF68 -> 19 | N22: ='SpPl. Vorrd.'!AD68 -> 8 | O22: ='SpPl. Vorrd.'!AF96 -> 25 | P22: ='SpPl. Vorrd.'!AD96 -> 8 | Q22: ='SpPl. Vorrd.'!AF49 -> 15 | R22: ='SpPl. Vorrd.'!AD49 -> 11 | U22: =SUM(C22,E22,G22,I22,K22,M22,O22,Q22,S22,) -> 121 | V22: =SUM(D22,F22,H22,J22,L22,N22,P22,R22,T22,) -> 83 | W22: =U23 -> 12 | X22: 2
C23: =IF(C22>D22,2,IF(C22+D22=0,0,IF(C22=D22,1,0))) -> 0 | D23: =IF(C22<D22,2,IF(C22+D22=0,0,IF(C22=D22,1,0))) -> 2 | E23: =IF(E22>F22,2,IF(E22+F22=0,0,IF(E22=F22,1,0))) -> 0 | F23: =IF(E22<F22,2,IF(E22+F22=0,0,IF(E22=F22,1,0))) -> 2 | G23: =IF(G22>H22,2,IF(G22+H22=0,0,IF(G22=H22,1,0))) -> 2 | H23: =IF(G22<H22,2,IF(G22+H22=0,0,IF(G22=H22,1,0))) -> 0 | I23: =IF(I22>J22,2,IF(I22+J22=0,0,IF(I22=J22,1,0))) -> 2 | J23: =IF(I22<J22,2,IF(I22+J22=0,0,IF(I22=J22,1,0))) -> 0 | K23: =IF(K22>L22,2,IF(K22+L22=0,0,IF(K22=L22,1,0))) -> 2 | L23: =IF(K22<L22,2,IF(K22+L22=0,0,IF(K22=L22,1,0))) -> 0 | M23: =IF(M22>N22,2,IF(M22+N22=0,0,IF(M22=N22,1,0))) -> 2 | N23: =IF(M22<N22,2,IF(M22+N22=0,0,IF(M22=N22,1,0))) -> 0 | O23: =IF(O22>P22,2,IF(O22+P22=0,0,IF(O22=P22,1,0))) -> 2 | P23: =IF(O22<P22,2,IF(O22+P22=0,0,IF(O22=P22,1,0))) -> 0 | Q23: =IF(Q22>R22,2,IF(Q22+R22=0,0,IF(Q22=R22,1,0))) -> 2 | R23: =IF(Q22<R22,2,IF(Q22+R22=0,0,IF(Q22=R22,1,0))) -> 0 | U23: =SUM(C23,E23,G23,I23,K23,M23,O23,Q23,S23) -> 12
D27: =[1]Beschrieb!$C$1 -> 19. Deutsche Meisterschft im Boccia (Halle)
A28: Vereine | C28: =[1]Beschrieb!$E$6 -> Rhinos Wiesbaden 1 | E28: =[1]Beschrieb!E7 -> VSG Stadthagen | G28: =[1]Beschrieb!E8 -> BSG Nordwalde | I28: =[1]Beschrieb!E9 -> BRS Gersweiler 2 | K28: =[1]Beschrieb!F6 -> BRV Berlin | M28: =[1]Beschrieb!F7 -> Rh. Leipzig | O28: =[1]Beschrieb!F8 -> Grevesmühlen | Q28: =[1]Beschrieb!F9 -> RBA Neumarkt | S28: =[1]Beschrieb!F10 -> BSG Mettmann | U28: Treffer | W28: Pluspunkte | X28: Platz
U29: Punkte
C30: + | D30: - | F30: - | G30: + | H30: - | I30: + | J30: - | K30: + | L30: - | M30: + | N30: - | O30: + | P30: - | Q30: + | R30: - | S30: + | T30: - | U30: + | V30: -
B31: =[1]Beschrieb!$E$6 -> Rhinos Wiesbaden 1 | E31: ='SpPl. Vorrd.'!AD64 -> 8 | F31: ='SpPl. Vorrd.'!AF64 -> 13 | G31: ='SpPl. Vorrd.'!AD101 -> 18 | H31: ='SpPl. Vorrd.'!AF101 -> 7 | I31: ='SpPl. Vorrd.'!AD58 -> 9 | J31: ='SpPl. Vorrd.'!AF58 -> 14 | K31: ='SpPl. Vorrd.'!AD22 -> 13 | L31: ='SpPl. Vorrd.'!AF22 -> 11 | M31: ='SpPl. Vorrd.'!AD31 -> 9 | N31: ='SpPl. Vorrd.'!AF31 -> 7 | O31: ='SpPl. Vorrd.'!AD43 -> 10 | P31: ='SpPl. Vorrd.'!AF43 -> 12 | Q31: ='SpPl. Vorrd.'!AD87 -> 10 | R31: ='SpPl. Vorrd.'!AF87 -> 9 | S31: ='SpPl. Vorrd.'!AD80 -> 9 | T31: ='SpPl. Vorrd.'!AF80 -> 12 | U31: =SUM(C31,E31,G31,I31,K31,M31,O31,Q31,S31,) -> 86 | V31: =SUM(D31,F31,H31,J31,L31,N31,P31,R31,T31,) -> 85 | W31: =U32 -> 8 | X31: 6
E32: =IF(E31>F31,2,IF(E31+F31=0,0,IF(E31=F31,1,0))) -> 0 | F32: =IF(E31<F31,2,IF(E31+F31=0,0,IF(E31=F31,1,0))) -> 2 | G32: =IF(G31>H31,2,IF(G31+H31=0,0,IF(G31=H31,1,0))) -> 2 | H32: =IF(G31<H31,2,IF(G31+H31=0,0,IF(G31=H31,1,0))) -> 0 | I32: =IF(I31>J31,2,IF(I31+J31=0,0,IF(I31=J31,1,0))) -> 0 | J32: =IF(I31<J31,2,IF(I31+J31=0,0,IF(I31=J31,1,0))) -> 2 | K32: =IF(K31>L31,2,IF(K31+L31=0,0,IF(K31=L31,1,0))) -> 2 | L32: =IF(K31<L31,2,IF(K31+L31=0,0,IF(K31=L31,1,0))) -> 0 | M32: =IF(M31>N31,2,IF(M31+N31=0,0,IF(M31=N31,1,0))) -> 2 | N32: =IF(M31<N31,2,IF(M31+N31=0,0,IF(M31=N31,1,0))) -> 0 | O32: =IF(O31>P31,2,IF(O31+P31=0,0,IF(O31=P31,1,0))) -> 0 | P32: =IF(O31<P31,2,IF(O31+P31=0,0,IF(O31=P31,1,0))) -> 2 | Q32: =IF(Q31>R31,2,IF(Q31+R31=0,0,IF(Q31=R31,1,0))) -> 2 | R32: =IF(Q31<R31,2,IF(Q31+R31=0,0,IF(Q31=R31,1,0))) -> 0 | S32: =IF(S31>T31,2,IF(S31+T31=0,0,IF(S31=T31,1,0))) -> 0 | T32: =IF(S31<T31,2,IF(S31+T31=0,0,IF(S31=T31,1,0))) -> 2 | U32: =SUM(C32,E32,G32,I32,K32,M32,O32,Q32,S32) -> 8
B33: =[1]Beschrieb!$E$7 -> VSG Stadthagen | C33: ='SpPl. Vorrd.'!AF64 -> 13 | D33: ='SpPl. Vorrd.'!AD64 -> 8 | G33: ='SpPl. Vorrd.'!AD57 -> 11 | H33: ='SpPl. Vorrd.'!AF57 -> 14 | I33: ='SpPl. Vorrd.'!AD100 -> 8 | J33: ='SpPl. Vorrd.'!AF100 -> 15 | K33: ='SpPl. Vorrd.'!AD79 -> 11 | L33: ='SpPl. Vorrd.'!AF79 -> 13 | M33: ='SpPl. Vorrd.'!AD23 -> 20 | N33: ='SpPl. Vorrd.'!AF23 -> 6 | O33: ='SpPl. Vorrd.'!AD36 -> 15 | P33: ='SpPl. Vorrd.'!AF36 -> 9 | Q33: ='SpPl. Vorrd.'!AD44 -> 9 | R33: ='SpPl. Vorrd.'!AF44 -> 10 | S33: ='SpPl. Vorrd.'!AD92 -> 13 | T33: ='SpPl. Vorrd.'!AF92 -> 11 | U33: =SUM(C33,E33,G33,I33,K33,M33,O33,Q33,S33,) -> 100 | V33: =SUM(D33,F33,H33,J33,L33,N33,P33,R33,T33,) -> 86 | W33: =U34 -> 8 | X33: 4
C34: =IF(C33>D33,2,IF(C33+D33=0,0,IF(C33=D33,1,0))) -> 2 | D34: =IF(C33<D33,2,IF(C33+D33=0,0,IF(C33=D33,1,0))) -> 0 | G34: =IF(G33>H33,2,IF(G33+H33=0,0,IF(G33=H33,1,0))) -> 0 | H34: =IF(G33<H33,2,IF(G33+H33=0,0,IF(G33=H33,1,0))) -> 2 | I34: =IF(I33>J33,2,IF(I33+J33=0,0,IF(I33=J33,1,0))) -> 0 | J34: =IF(I33<J33,2,IF(I33+J33=0,0,IF(I33=J33,1,0))) -> 2 | K34: =IF(K33>L33,2,IF(K33+L33=0,0,IF(K33=L33,1,0))) -> 0 | L34: =IF(K33<L33,2,IF(K33+L33=0,0,IF(K33=L33,1,0))) -> 2 | M34: =IF(M33>N33,2,IF(M33+N33=0,0,IF(M33=N33,1,0))) -> 2 | N34: =IF(M33<N33,2,IF(M33+N33=0,0,IF(M33=N33,1,0))) -> 0 | O34: =IF(O33>P33,2,IF(O33+P33=0,0,IF(O33=P33,1,0))) -> 2 | P34: =IF(O33<P33,2,IF(O33+P33=0,0,IF(O33=P33,1,0))) -> 0 | Q34: =IF(Q33>R33,2,IF(Q33+R33=0,0,IF(Q33=R33,1,0))) -> 0 | R34: =IF(Q33<R33,2,IF(Q33+R33=0,0,IF(Q33=R33,1,0))) -> 2 | S34: =IF(S33>T33,2,IF(S33+T33=0,0,IF(S33=T33,1,0))) -> 2 | T34: =IF(S33<T33,2,IF(S33+T33=0,0,IF(S33=T33,1,0))) -> 0 | U34: =SUM(C34,E34,G34,I34,K34,M34,O34,Q34,S34) -> 8
B35: =[1]Beschrieb!$E$8 -> BSG Nordwalde | C35: ='SpPl. Vorrd.'!AF101 -> 7 | D35: ='SpPl. Vorrd.'!AD101 -> 18 | E35: ='SpPl. Vorrd.'!AF57 -> 14 | F35: ='SpPl. Vorrd.'!AD57 -> 11 | I35: ='SpPl. Vorrd.'!AD65 -> 8 | J35: ='SpPl. Vorrd.'!AF65 -> 7 | K35: ='SpPl. Vorrd.'!AD93 -> 11 | L35: ='SpPl. Vorrd.'!AF93 -> 9 | M35: ='SpPl. Vorrd.'!AD78 -> 20 | N35: ='SpPl. Vorrd.'!AF78 -> 4 | O35: ='SpPl. Vorrd.'!AD24 -> 17 | P35: ='SpPl. Vorrd.'!AF24 -> 9 | Q35: ='SpPl. Vorrd.'!AD37 -> 5 | R35: ='SpPl. Vorrd.'!AF37 -> 19 | S35: ='SpPl. Vorrd.'!AD45 -> 8 | T35: ='SpPl. Vorrd.'!AF45 -> 12 | U35: =SUM(C35,E35,G35,I35,K35,M35,O35,Q35,S35,) -> 90 | V35: =SUM(D35,F35,H35,J35,L35,N35,P35,R35,T35,) -> 89 | W35: =U36 -> 10 | X35: 3
C36: =IF(C35>D35,2,IF(C35+D35=0,0,IF(C35=D35,1,0))) -> 0 | D36: =IF(C35<D35,2,IF(C35+D35=0,0,IF(C35=D35,1,0))) -> 2 | E36: =IF(E35>F35,2,IF(E35+F35=0,0,IF(E35=F35,1,0))) -> 2 | F36: =IF(E35<F35,2,IF(E35+F35=0,0,IF(E35=F35,1,0))) -> 0 | I36: =IF(I35>J35,2,IF(I35+J35=0,0,IF(I35=J35,1,0))) -> 2 | J36: =IF(I35<J35,2,IF(I35+J35=0,0,IF(I35=J35,1,0))) -> 0 | K36: =IF(K35>L35,2,IF(K35+L35=0,0,IF(K35=L35,1,0))) -> 2 | L36: =IF(K35<L35,2,IF(K35+L35=0,0,IF(K35=L35,1,0))) -> 0 | M36: =IF(M35>N35,2,IF(M35+N35=0,0,IF(M35=N35,1,0))) -> 2 | N36: =IF(M35<N35,2,IF(M35+N35=0,0,IF(M35=N35,1,0))) -> 0 | O36: =IF(O35>P35,2,IF(O35+P35=0,0,IF(O35=P35,1,0))) -> 2 | P36: =IF(O35<P35,2,IF(O35+P35=0,0,IF(O35=P35,1,0))) -> 0 | Q36: =IF(Q35>R35,2,IF(Q35+R35=0,0,IF(Q35=R35,1,0))) -> 0 | R36: =IF(Q35<R35,2,IF(Q35+R35=0,0,IF(Q35=R35,1,0))) -> 2 | S36: =IF(S35>T35,2,IF(S35+T35=0,0,IF(S35=T35,1,0))) -> 0 | T36: =IF(S35<T35,2,IF(S35+T35=0,0,IF(S35=T35,1,0))) -> 2 | U36: =SUM(C36,E36,G36,I36,K36,M36,O36,Q36,S36) -> 10
B37: =[1]Beschrieb!$E$9 -> BRS Gersweiler 2 | C37: ='SpPl. Vorrd.'!AF58 -> 14 | D37: ='SpPl. Vorrd.'!AD58 -> 9 | E37: ='SpPl. Vorrd.'!AF100 -> 15 | F37: ='SpPl. Vorrd.'!AD100 -> 8 | G37: ='SpPl. Vorrd.'!AF65 -> 7 | H37: ='SpPl. Vorrd.'!AD65 -> 8 | K37: ='SpPl. Vorrd.'!AD50 -> 14 | L37: ='SpPl. Vorrd.'!AF50 -> 10 | M37: ='SpPl. Vorrd.'!AD85 -> 15 | N37: ='SpPl. Vorrd.'!AF85 -> 8 | O37: ='SpPl. Vorrd.'!AD73 -> 11 | P37: ='SpPl. Vorrd.'!AF73 -> 11 | Q37: ='SpPl. Vorrd.'!AD29 -> 13 | R37: ='SpPl. Vorrd.'!AF29 -> 5 | S37: ='SpPl. Vorrd.'!AD38 -> 13 | T37: ='SpPl. Vorrd.'!AF38 -> 10 | U37: =SUM(C37,E37,G37,I37,K37,M37,O37,Q37,S37,) -> 102 | V37: =SUM(D37,F37,H37,J37,L37,N37,P37,R37,T37,) -> 69 | W37: =U38 -> 13 | X37: 1
C38: =IF(C37>D37,2,IF(C37+D37=0,0,IF(C37=D37,1,0))) -> 2 | D38: =IF(C37<D37,2,IF(C37+D37=0,0,IF(C37=D37,1,0))) -> 0 | E38: =IF(E37>F37,2,IF(E37+F37=0,0,IF(E37=F37,1,0))) -> 2 | F38: =IF(E37<F37,2,IF(E37+F37=0,0,IF(E37=F37,1,0))) -> 0 | G38: =IF(G37>H37,2,IF(G37+H37=0,0,IF(G37=H37,1,0))) -> 0 | H38: =IF(G37<H37,2,IF(G37+H37=0,0,IF(G37=H37,1,0))) -> 2 | K38: =IF(K37>L37,2,IF(K37+L37=0,0,IF(K37=L37,1,0))) -> 2 | L38: =IF(K37<L37,2,IF(K37+L37=0,0,IF(K37=L37,1,0))) -> 0 | M38: =IF(M37>N37,2,IF(M37+N37=0,0,IF(M37=N37,1,0))) -> 2 | N38: =IF(M37<N37,2,IF(M37+N37=0,0,IF(M37=N37,1,0))) -> 0 | O38: =IF(O37>P37,2,IF(O37+P37=0,0,IF(O37=P37,1,0))) -> 1 | P38: =IF(O37<P37,2,IF(O37+P37=0,0,IF(O37=P37,1,0))) -> 1 | Q38: =IF(Q37>R37,2,IF(Q37+R37=0,0,IF(Q37=R37,1,0))) -> 2 | R38: =IF(Q37<R37,2,IF(Q37+R37=0,0,IF(Q37=R37,1,0))) -> 0 | S38: =IF(S37>T37,2,IF(S37+T37=0,0,IF(S37=T37,1,0))) -> 2 | T38: =IF(S37<T37,2,IF(S37+T37=0,0,IF(S37=T37,1,0))) -> 0 | U38: =SUM(C38,E38,G38,I38,K38,M38,O38,Q38,S38) -> 13
B39: =[1]Beschrieb!$F$6 -> BRV Berlin | C39: ='SpPl. Vorrd.'!AF22 -> 11 | D39: ='SpPl. Vorrd.'!AD22 -> 13 | E39: ='SpPl. Vorrd.'!AF79 -> 13 | F39: ='SpPl. Vorrd.'!AD79 -> 11 | G39: ='SpPl. Vorrd.'!AF93 -> 9 | H39: ='SpPl. Vorrd.'!AD93 -> 11 | I39: ='SpPl. Vorrd.'!AF50 -> 10 | J39: ='SpPl. Vorrd.'!AD50 -> 14 | M39: ='SpPl. Vorrd.'!AD59 -> 8 | N39: ='SpPl. Vorrd.'!AF59 -> 11 | O39: ='SpPl. Vorrd.'!AD86 -> 14 | P39: ='SpPl. Vorrd.'!AF86 -> 15 | Q39: ='SpPl. Vorrd.'!AD72 -> 7 | R39: ='SpPl. Vorrd.'!AF72 -> 17 | S39: ='SpPl. Vorrd.'!AD30 -> 7 | T39: ='SpPl. Vorrd.'!AF30 -> 18 | U39: =SUM(C39,E39,G39,I39,K39,M39,O39,Q39,S39,) -> 79 | V39: =SUM(D39,F39,H39,J39,L39,N39,P39,R39,T39,) -> 110 | W39: =U40 -> 2 | X39: 9
C40: =IF(C39>D39,2,IF(C39+D39=0,0,IF(C39=D39,1,0))) -> 0 | D40: =IF(C39<D39,2,IF(C39+D39=0,0,IF(C39=D39,1,0))) -> 2 | E40: =IF(E39>F39,2,IF(E39+F39=0,0,IF(E39=F39,1,0))) -> 2 | F40: =IF(E39<F39,2,IF(E39+F39=0,0,IF(E39=F39,1,0))) -> 0 | G40: =IF(G39>H39,2,IF(G39+H39=0,0,IF(G39=H39,1,0))) -> 0 | H40: =IF(G39<H39,2,IF(G39+H39=0,0,IF(G39=H39,1,0))) -> 2 | I40: =IF(I39>J39,2,IF(I39+J39=0,0,IF(I39=J39,1,0))) -> 0 | J40: =IF(I39<J39,2,IF(I39+J39=0,0,IF(I39=J39,1,0))) -> 2 | M40: =IF(M39>N39,2,IF(M39+N39=0,0,IF(M39=N39,1,0))) -> 0 | N40: =IF(M39<N39,2,IF(M39+N39=0,0,IF(M39=N39,1,0))) -> 2 | O40: =IF(O39>P39,2,IF(O39+P39=0,0,IF(O39=P39,1,0))) -> 0 | P40: =IF(O39<P39,2,IF(O39+P39=0,0,IF(O39=P39,1,0))) -> 2 | Q40: =IF(Q39>R39,2,IF(Q39+R39=0,0,IF(Q39=R39,1,0))) -> 0 | R40: =IF(Q39<R39,2,IF(Q39+R39=0,0,IF(Q39=R39,1,0))) -> 2 | S40: =IF(S39>T39,2,IF(S39+T39=0,0,IF(S39=T39,1,0))) -> 0 | T40: =IF(S39<T39,2,IF(S39+T39=0,0,IF(S39=T39,1,0))) -> 2 | U40: =SUM(C40,E40,G40,I40,K40,M40,O40,Q40,S40) -> 2
B41: =[1]Beschrieb!$F$7 -> Rh. Leipzig | C41: ='SpPl. Vorrd.'!AF31 -> 7 | D41: ='SpPl. Vorrd.'!AD31 -> 9 | E41: ='SpPl. Vorrd.'!AF23 -> 6 | F41: ='SpPl. Vorrd.'!AD23 -> 20 | G41: ='SpPl. Vorrd.'!AF78 -> 4 | H41: ='SpPl. Vorrd.'!AD78 -> 20 | I41: ='SpPl. Vorrd.'!AF85 -> 8 | J41: ='SpPl. Vorrd.'!AD85 -> 15 | K41: ='SpPl. Vorrd.'!AF59 -> 11 | L41: ='SpPl. Vorrd.'!AD59 -> 8 | O41: ='SpPl. Vorrd.'!AD51 -> 7 | P41: ='SpPl. Vorrd.'!AF51 -> 12 | Q41: ='SpPl. Vorrd.'!AD94 -> 9 | R41: ='SpPl. Vorrd.'!AF94 -> 11 | S41: ='SpPl. Vorrd.'!AD71 -> 16 | T41: ='SpPl. Vorrd.'!AF71 -> 9 | U41: =SUM(C41,E41,G41,I41,K41,M41,O41,Q41,S41,) -> 68 | V41: =SUM(D41,F41,H41,J41,L41,N41,P41,R41,T41,) -> 104 | W41: =U42 -> 4 | X41: 8
C42: =IF(C41>D41,2,IF(C41+D41=0,0,IF(C41=D41,1,0))) -> 0 | D42: =IF(C41<D41,2,IF(C41+D41=0,0,IF(C41=D41,1,0))) -> 2 | E42: =IF(E41>F41,2,IF(E41+F41=0,0,IF(E41=F41,1,0))) -> 0 | F42: =IF(E41<F41,2,IF(E41+F41=0,0,IF(E41=F41,1,0))) -> 2 | G42: =IF(G41>H41,2,IF(G41+H41=0,0,IF(G41=H41,1,0))) -> 0 | H42: =IF(G41<H41,2,IF(G41+H41=0,0,IF(G41=H41,1,0))) -> 2 | I42: =IF(I41>J41,2,IF(I41+J41=0,0,IF(I41=J41,1,0))) -> 0 | J42: =IF(I41<J41,2,IF(I41+J41=0,0,IF(I41=J41,1,0))) -> 2 | K42: =IF(K41>L41,2,IF(K41+L41=0,0,IF(K41=L41,1,0))) -> 2 | L42: =IF(K41<L41,2,IF(K41+L41=0,0,IF(K41=L41,1,0))) -> 0 | O42: =IF(O41>P41,2,IF(O41+P41=0,0,IF(O41=P41,1,0))) -> 0 | P42: =IF(O41<P41,2,IF(O41+P41=0,0,IF(O41=P41,1,0))) -> 2 | Q42: =IF(Q41>R41,2,IF(Q41+R41=0,0,IF(Q41=R41,1,0))) -> 0 | R42: =IF(Q41<R41,2,IF(Q41+R41=0,0,IF(Q41=R41,1,0))) -> 2 | S42: =IF(S41>T41,2,IF(S41+T41=0,0,IF(S41=T41,1,0))) -> 2 | T42: =IF(S41<T41,2,IF(S41+T41=0,0,IF(S41=T41,1,0))) -> 0 | U42: =SUM(C42,E42,G42,I42,K42,M42,O42,Q42,S42) -> 4
B43: =[1]Beschrieb!$F$8 -> Grevesmühlen | C43: ='SpPl. Vorrd.'!AF43 -> 12 | D43: ='SpPl. Vorrd.'!AD43 -> 10 | E43: ='SpPl. Vorrd.'!AF36 -> 9 | F43: ='SpPl. Vorrd.'!AD36 -> 15 | G43: ='SpPl. Vorrd.'!AF24 -> 9 | H43: ='SpPl. Vorrd.'!AD24 -> 17 | I43: ='SpPl. Vorrd.'!AF73 -> 11 | J43: ='SpPl. Vorrd.'!AD73 -> 11 | K43: ='SpPl. Vorrd.'!AF86 -> 15 | L43: ='SpPl. Vorrd.'!AD86 -> 14 | M43: ='SpPl. Vorrd.'!AF51 -> 12 | N43: ='SpPl. Vorrd.'!AD51 -> 7 | Q43: ='SpPl. Vorrd.'!AD66 -> 6 | R43: ='SpPl. Vorrd.'!AF66 -> 16 | S43: ='SpPl. Vorrd.'!AD99 -> 8 | T43: ='SpPl. Vorrd.'!AF99 -> 14 | U43: =SUM(C43,E43,G43,I43,K43,M43,O43,Q43,S43,) -> 82 | V43: =SUM(D43,F43,H43,J43,L43,N43,P43,R43,T43,) -> 104 | W43: =U44 -> 7 | X43: 7
C44: =IF(C43>D43,2,IF(C43+D43=0,0,IF(C43=D43,1,0))) -> 2 | D44: =IF(C43<D43,2,IF(C43+D43=0,0,IF(C43=D43,1,0))) -> 0 | E44: =IF(E43>F43,2,IF(E43+F43=0,0,IF(E43=F43,1,0))) -> 0 | F44: =IF(E43<F43,2,IF(E43+F43=0,0,IF(E43=F43,1,0))) -> 2 | G44: =IF(G43>H43,2,IF(G43+H43=0,0,IF(G43=H43,1,0))) -> 0 | H44: =IF(G43<H43,2,IF(G43+H43=0,0,IF(G43=H43,1,0))) -> 2 | I44: =IF(I43>J43,2,IF(I43+J43=0,0,IF(I43=J43,1,0))) -> 1 | J44: =IF(I43<J43,2,IF(I43+J43=0,0,IF(I43=J43,1,0))) -> 1 | K44: =IF(K43>L43,2,IF(K43+L43=0,0,IF(K43=L43,1,0))) -> 2 | L44: =IF(K43<L43,2,IF(K43+L43=0,0,IF(K43=L43,1,0))) -> 0 | M44: =IF(M43>N43,2,IF(M43+N43=0,0,IF(M43=N43,1,0))) -> 2 | N44: =IF(M43<N43,2,IF(M43+N43=0,0,IF(M43=N43,1,0))) -> 0 | Q44: =IF(Q43>R43,2,IF(Q43+R43=0,0,IF(Q43=R43,1,0))) -> 0 | R44: =IF(Q43<R43,2,IF(Q43+R43=0,0,IF(Q43=R43,1,0))) -> 2 | S44: =IF(S43>T43,2,IF(S43+T43=0,0,IF(S43=T43,1,0))) -> 0 | T44: =IF(S43<T43,2,IF(S43+T43=0,0,IF(S43=T43,1,0))) -> 2 | U44: =SUM(C44,E44,G44,I44,K44,M44,O44,Q44,S44) -> 7
B45: =[1]Beschrieb!$F$9 -> RBA Neumarkt | C45: ='SpPl. Vorrd.'!AF87 -> 9 | D45: ='SpPl. Vorrd.'!AD87 -> 10 | E45: ='SpPl. Vorrd.'!AF44 -> 10 | F45: ='SpPl. Vorrd.'!AD44 -> 9 | G45: ='SpPl. Vorrd.'!AF37 -> 19 | H45: ='SpPl. Vorrd.'!AD37 -> 5 | I45: ='SpPl. Vorrd.'!AF29 -> 5 | J45: ='SpPl. Vorrd.'!AD29 -> 13 | K45: ='SpPl. Vorrd.'!AF72 -> 17 | L45: ='SpPl. Vorrd.'!AD72 -> 7 | M45: ='SpPl. Vorrd.'!AF94 -> 11 | N45: ='SpPl. Vorrd.'!AD94 -> 9 | O45: ='SpPl. Vorrd.'!AF66 -> 16 | P45: ='SpPl. Vorrd.'!AD66 -> 6 | S45: ='SpPl. Vorrd.'!AD52 -> 13 | T45: ='SpPl. Vorrd.'!AF52 -> 10 | U45: =SUM(C45,E45,G45,I45,K45,M45,O45,Q45,S45,) -> 100 | V45: =SUM(D45,F45,H45,J45,L45,N45,P45,R45,T45,) -> 69 | W45: =U46 -> 12 | X45: 2
C46: =IF(C45>D45,2,IF(C45+D45=0,0,IF(C45=D45,1,0))) -> 0 | D46: =IF(C45<D45,2,IF(C45+D45=0,0,IF(C45=D45,1,0))) -> 2 | E46: =IF(E45>F45,2,IF(E45+F45=0,0,IF(E45=F45,1,0))) -> 2 | F46: =IF(E45<F45,2,IF(E45+F45=0,0,IF(E45=F45,1,0))) -> 0 | G46: =IF(G45>H45,2,IF(G45+H45=0,0,IF(G45=H45,1,0))) -> 2 | H46: =IF(G45<H45,2,IF(G45+H45=0,0,IF(G45=H45,1,0))) -> 0 | I46: =IF(I45>J45,2,IF(I45+J45=0,0,IF(I45=J45,1,0))) -> 0 | J46: =IF(I45<J45,2,IF(I45+J45=0,0,IF(I45=J45,1,0))) -> 2 | K46: =IF(K45>L45,2,IF(K45+L45=0,0,IF(K45=L45,1,0))) -> 2 | L46: =IF(K45<L45,2,IF(K45+L45=0,0,IF(K45=L45,1,0))) -> 0 | M46: =IF(M45>N45,2,IF(M45+N45=0,0,IF(M45=N45,1,0))) -> 2 | N46: =IF(M45<N45,2,IF(M45+N45=0,0,IF(M45=N45,1,0))) -> 0 | O46: =IF(O45>P45,2,IF(O45+P45=0,0,IF(O45=P45,1,0))) -> 2 | P46: =IF(O45<P45,2,IF(O45+P45=0,0,IF(O45=P45,1,0))) -> 0 | S46: =IF(S45>T45,2,IF(S45+T45=0,0,IF(S45=T45,1,0))) -> 2 | T46: =IF(S45<T45,2,IF(S45+T45=0,0,IF(S45=T45,1,0))) -> 0 | U46: =SUM(C46,E46,G46,I46,K46,M46,O46,Q46,S46) -> 12
B47: =[1]Beschrieb!$F$10 -> BSG Mettmann | C47: ='SpPl. Vorrd.'!AF80 -> 12 | D47: ='SpPl. Vorrd.'!AD80 -> 9 | E47: ='SpPl. Vorrd.'!AF92 -> 11 | F47: ='SpPl. Vorrd.'!AD92 -> 13 | G47: ='SpPl. Vorrd.'!AF45 -> 12 | H47: ='SpPl. Vorrd.'!AD45 -> 8 | I47: ='SpPl. Vorrd.'!AF38 -> 10 | J47: ='SpPl. Vorrd.'!AD38 -> 13 | K47: ='SpPl. Vorrd.'!AF30 -> 18 | L47: ='SpPl. Vorrd.'!AD30 -> 7 | M47: ='SpPl. Vorrd.'!AF71 -> 9 | N47: ='SpPl. Vorrd.'!AD71 -> 16 | O47: ='SpPl. Vorrd.'!AF99 -> 14 | P47: ='SpPl. Vorrd.'!AD99 -> 8 | Q47: ='SpPl. Vorrd.'!AF52 -> 10 | R47: ='SpPl. Vorrd.'!AD52 -> 13 | U47: =SUM(C47,E47,G47,I47,K47,M47,O47,Q47,S47,) -> 96 | V47: =SUM(D47,F47,H47,J47,L47,N47,P47,R47,T47,) -> 87 | W47: =U48 -> 8 | X47: 5
C48: =IF(C47>D47,2,IF(C47+D47=0,0,IF(C47=D47,1,0))) -> 2 | D48: =IF(C47<D47,2,IF(C47+D47=0,0,IF(C47=D47,1,0))) -> 0 | E48: =IF(E47>F47,2,IF(E47+F47=0,0,IF(E47=F47,1,0))) -> 0 | F48: =IF(E47<F47,2,IF(E47+F47=0,0,IF(E47=F47,1,0))) -> 2 | G48: =IF(G47>H47,2,IF(G47+H47=0,0,IF(G47=H47,1,0))) -> 2 | H48: =IF(G47<H47,2,IF(G47+H47=0,0,IF(G47=H47,1,0))) -> 0 | I48: =IF(I47>J47,2,IF(I47+J47=0,0,IF(I47=J47,1,0))) -> 0 | J48: =IF(I47<J47,2,IF(I47+J47=0,0,IF(I47=J47,1,0))) -> 2 | K48: =IF(K47>L47,2,IF(K47+L47=0,0,IF(K47=L47,1,0))) -> 2 | L48: =IF(K47<L47,2,IF(K47+L47=0,0,IF(K47=L47,1,0))) -> 0 | M48: =IF(M47>N47,2,IF(M47+N47=0,0,IF(M47=N47,1,0))) -> 0 | N48: =IF(M47<N47,2,IF(M47+N47=0,0,IF(M47=N47,1,0))) -> 2 | O48: =IF(O47>P47,2,IF(O47+P47=0,0,IF(O47=P47,1,0))) -> 2 | P48: =IF(O47<P47,2,IF(O47+P47=0,0,IF(O47=P47,1,0))) -> 0 | Q48: =IF(Q47>R47,2,IF(Q47+R47=0,0,IF(Q47=R47,1,0))) -> 0 | R48: =IF(Q47<R47,2,IF(Q47+R47=0,0,IF(Q47=R47,1,0))) -> 2 | U48: =SUM(C48,E48,G48,I48,K48,M48,O48,Q48,S48) -> 8

Sheet SpPl. Zw.u.End-Rd.
F3: Spielplan Endrunde: | AH3: Endergebnis:
A6: Spiel | D6: Bahn: | F6: Mannschaften: | S6: Linienrichter | X6: Schiedsrichter | AC6: Ergebnis: | AH6: 1. Sieger | AI6: =IF(AC31>AE31,F31,M31) -> BRS Gersweiler 2
A7: Nr. | B7: DG Zeit
AH8: 2. Sieger | AI8: BSSV Köthen
A9: 73 | B9: DG 13 13.30 | D9: 1 | F9: BSSV Köthen | M9: RBA Neumarkt | S9: ZGS Berlin | X9: Beck Adolph | AC9: 12 | AD9: : | AE9: 11
A10: 74 | D10: 2 | F10: BVS Weiden | M10: BRS Gersweiler 2 | X10: Schmid Angelika | AC10: 9 | AD10: : | AE10: 12 | AH10: 3. Sieger | AI10: RBA Neumarkt
A11: 75 | D11: 3 | F11: TV Markgröningen | M11: VSG Stadthagen | X11: Friedrich Chr. | AC11: 12 | AD11: : | AE11: 9
A12: 76 | D12: 4 | F12: VSG Gelsenkirchen | M12: BSG Nordwalde | S12: BRV Berlin | X12: Schmid K.-H. | AC12: 19 | AD12: : | AE12: 7 | AH12: 4. Sieger | AI12: BVS Weiden
A13: 77 | D13: 5 | F13: RSG Partenstein | M13: Rh. Wiesbaden 1 | X13: Ahrens | AC13: 9 | AD13: : | AE13: 19 | AH13: 5. Sieger | AI13: =IF(AC28>AE28,F28,M28) -> VSG Gelsenkirchen
A14: 78 | D14: 6 | F14: BRS Gersweiler 1 | M14: BSG Mettmann | X14: Rödel | AC14: 15 | AD14: : | AE14: 13 | AH14: 6. Sieger | AI14: =IF(AC28<AE28,F28,M28) -> TV Markgröningen
AH15: 7. Sieger | AI15: =IF(AC27>AE27,F27,M27) -> VSG Stadthagen
A16: 79 | B16: DG 14 14.15 | D16: 1 | F16: ZGS Berlin | M16: Rh. Leipzig | S16: Gersweiler | X16: Sachsenanhalt | AC16: 16 | AD16: : | AE16: 9 | AH16: 8. Sieger | AI16: =IF(AC27<AE27,F27,M27) -> BSG Nordwalde
A17: 80 | D17: 2 | F17: Rh. Wiesbaden 2 | M17: BRSV Grevesmühlen | S17: Gersweiler | X17: Berlin | AC17: 11 | AD17: : | AE17: 13 | AH17: 9. Sieger | AI17: =IF(AC26>AE26,F26,M26) -> BRS Gersweiler 1
AH18: 10. Sieger | AI18: =IF(AC26<AE26,F26,M26) -> Rh. Wiesbaden 1
AH19: 11. Sieger | AI19: =IF(AC25>AE25,F25,M25) -> BSG Mettmann
AH20: 12. Sieger | AI20: =IF(AC25<AE25,F25,M25) -> RSG Partenstein
A21: 81 | D21: 4 | F21: BSG Offenburg | M21: BRV Berlin | S21: Gersweiler | X21: NRW | AC21: 9 | AD21: : | AE21: 12 | AF21: 17/18 | AH21: 13. Sieger | AI21: =IF(AC24>AE24,F24,M24) -> ZGS Berlin
AH22: 14. Sieger | AI22: =IF(AC24<AE24,F24,M24) -> BRSV Grevesmühlen
A23: 82 | B23: DG 15 15.00 | D23: 1 | F23: =IF(AC16<AE16,F16,M16) -> Rh. Leipzig | M23: =IF(AC17<AE17,F17,M17) -> Rh. Wiesbaden 2 | S23: Offenburg | X23: Beck adolph | AC23: 16 | AD23: : | AE23: 12 | AF23: 15/16 | AH23: 15. Sieger | AI23: =IF(AC23>AE23,F23,M23) -> Rh. Leipzig
A24: 83 | D24: 2 | F24: =IF(AC16>AE16,F16,M16) -> ZGS Berlin | M24: =IF(AC17>AE17,F17,M17) -> BRSV Grevesmühlen | X24: Schmid Angelika | AC24: 10 | AD24: : | AE24: 7 | AF24: 13/14 | AH24: 16. Sieger | AI24: =IF(AC23<AE23,F23,M23) -> Rh. Wiesbaden 2
A25: 84 | D25: 3 | F25: =IF(AC13<AE13,F13,M13) -> RSG Partenstein | M25: =IF(AC14<AE14,F14,M14) -> BSG Mettmann | X25: Schmid K.-H. | AC25: 11 | AD25: : | AE25: 14 | AF25: 12/11 | AH25: 17. Sieger | AI25: =IF(AC21>AE21,F21,M21) -> BRV Berlin
A26: 85 | D26: 4 | F26: =IF(AC13>AE13,F13,M13) -> Rh. Wiesbaden 1 | M26: =IF(AC14>AE14,F14,M14) -> BRS Gersweiler 1 | S26: BRV Berlin | X26: Friedrich Christian | AC26: 8 | AD26: : | AE26: 12 | AF26: 9/10 | AH26: 18. Sieger | AI26: =IF(AC21<AE21,F21,M21) -> BSG Offenburg
A27: 86 | D27: 5 | F27: =IF(AC11<AE11,F11,M11) -> VSG Stadthagen | M27: =IF(AC12<AE12,F12,M12) -> BSG Nordwalde | X27: Ahrens | AC27: 15 | AD27: : | AE27: 8 | AF27: 7/8
A28: 87 | D28: 6 | F28: =IF(AC11>AE11,F11,M11) -> TV Markgröningen | M28: =IF(AC12>AE12,F12,M12) -> VSG Gelsenkirchen | X28: Rödel | AC28: 11 | AD28: : | AE28: 13 | AF28: 5/6
F29: Endspiele um Platz 3 und 4 und Platz 1 und 2
A30: 88 | B30: DG 16 14.15 | D30: 1 | F30: =IF(AC9<AE9,F9,M9) -> RBA Neumarkt | M30: =IF(AC10<AE10,F10,M10) -> BVS Weiden | S30: Nordwalde | X30: =[1]Beschrieb!D12 -> Schmid K.-H. | AC30: 10 | AD30: : | AE30: 9 | AF30: 3/4
A31: 89 | D31: 2 | F31: =IF(AC9>AE9,F9,M9) -> BSSV Köthen | M31: =IF(AC10>AE10,F10,M10) -> BRS Gersweiler 2 | S31: Stadthagen | X31: Friedrich Chr. | AC31: 10 | AD31: : | AE31: 13 | AF31: 1/2
